bitfinex/quotes_BTCUSD_20230901
["timestamp","ask_amount","ask_price","bid_price","bid_amount"]
[1693568531353,0.1863,26067.0,26063.0,0.2524]
[1693568531354,0.23024797,26067.0,26063.0,0.2524]
[1693568531520,0.1184,26065.0,26064.0,0.1]
[1693568532678,0.1184,26065.0,26064.0,0.137]
[1693568532835,0.1184,26065.0,26064.0,0.1]
[1693568533256,0.1184,26065.0,26064.0,0.174]
[1693568535040,0.62046678,26065.0,26064.0,0.174]
[1693568535232,0.63132678,26065.0,26064.0,0.174]
[1693568535486,0.63108678,26065.0,26064.0,0.174]
[1693568535683,0.63624678,26065.0,26064.0,0.364]
[1693568535890,0.63852678,26065.0,26064.0,0.364]
[1693568536095,0.63606678,26065.0,26064.0,0.364]
[1693568536270,0.64008678,26065.0,26064.0,0.364]
[1693568536429,0.64212678,26065.0,26064.0,0.364]
[1693568536631,0.64092678,26065.0,26064.0,0.364]
[1693568536852,0.9187132,26065.0,26064.0,0.364]
[1693568537244,1.3092332,26065.0,26064.0,0.364]
[1693568537449,1.02472678,26065.0,26064.0,0.364]
[1693568537660,1.02412678,26065.0,26064.0,0.364]
[1693568537864,1.01098678,26065.0,26064.0,0.364]
[1693568538017,1.01104678,26065.0,26064.0,0.364]
[1693568538297,0.92998678,26065.0,26064.0,0.364]
[1693568539475,0.1384,26065.0,26064.0,0.364]
[1693568539855,0.1184,26065.0,26064.0,0.364]
[1693568540877,0.1184,26065.0,26064.0,0.327]
[1693568541091,0.1184,26065.0,26064.0,0.364]
[1693568541517,0.1184,26065.0,26064.0,0.327]
[1693568541742,0.1184,26065.0,26064.0,0.29]
[1693568541986,0.1184,26065.0,26064.0,0.327]
[1693568542196,0.1184,26065.0,26064.0,0.364]
[1693568543440,0.1184,26065.0,26064.0,0.327]
[1693568543655,0.1184,26065.0,26064.0,0.364]
[1693568543869,0.1184,26065.0,26064.0,0.327]
[1693568544312,1.08028,26069.0,26066.0,0.1]
[1693568544515,0.94589,26069.0,26068.0,0.1]
[1693568544715,0.94498936,26069.0,26068.0,0.1]
[1693568544925,0.94408864,26069.0,26068.0,0.1]
[1693568545870,0.94408864,26069.0,26068.0,0.137]
[1693568546069,0.94408864,26069.0,26068.0,0.174]
[1693568546283,0.94408864,26069.0,26068.0,0.21239]
[1693568546519,0.94408864,26069.0,26068.0,0.17539]
[1693568546721,0.94408864,26069.0,26068.0,0.21239]
[1693568547129,0.94408864,26069.0,26068.0,0.17539]
[1693568547501,0.94408864,26069.0,26068.0,0.13839]
[1693568547881,0.94408864,26069.0,26068.0,0.17539]
[1693568548286,1.06248864,26069.0,26068.0,0.17539]
[1693568548527,1.06248864,26069.0,26068.0,0.21239]
[1693568548723,1.06248864,26069.0,26068.0,0.17539]
[1693568549102,1.06248864,26069.0,26068.0,0.21239]
[1693568550298,1.57043542,26069.0,26068.0,0.174]
[1693568550512,1.56623542,26069.0,26068.0,0.174]
[1693568550747,1.56935542,26069.0,26068.0,0.20434746]
[1693568550967,1.56137542,26069.0,26068.0,0.20434746]
[1693568551184,1.56287542,26069.0,26068.0,0.20434746]
[1693568551416,1.56221542,26069.0,26068.0,0.20434746]
[1693568551549,1.56233542,26069.0,26068.0,0.16734746]
[1693568551769,1.57311542,26069.0,26068.0,0.16734746]
[1693568551980,1.57311542,26069.0,26068.0,0.13034746]
[1693568551981,1.56951542,26069.0,26068.0,0.13034746]
[1693568552190,1.57077542,26069.0,26068.0,0.16734746]
[1693568552386,1.56893542,26069.0,26068.0,0.16734746]
[1693568552725,1.56989542,26069.0,26068.0,0.20434746]
[1693568552863,1.56899542,26069.0,26068.0,0.20434746]
[1693568553064,1.56689542,26069.0,26068.0,0.20434746]
[1693568553292,1.55513542,26069.0,26068.0,0.20434746]
[1693568553627,1.55333542,26069.0,26068.0,0.20434746]
[1693568553827,1.46957542,26069.0,26068.0,0.20434746]
[1693568554245,1.54577542,26069.0,26068.0,0.20434746]
[1693568554376,1.54589542,26069.0,26068.0,0.20434746]
[1693568554577,1.54613542,26069.0,26068.0,0.20434746]
[1693568554799,1.54655542,26069.0,26068.0,0.20434746]
[1693568555003,1.54625542,26069.0,26068.0,0.20434746]
[1693568555247,1.46957542,26069.0,26068.0,0.20434746]
[1693568555852,1.54313542,26069.0,26068.0,0.20434746]
[1693568556073,1.54433542,26069.0,26068.0,0.20434746]
[1693568556277,1.54403542,26069.0,26068.0,0.20434746]
[1693568556488,1.54667542,26069.0,26068.0,0.20434746]
[1693568556686,1.54511542,26069.0,26068.0,0.20434746]
[1693568556909,1.54469542,26069.0,26068.0,0.20434746]
[1693568557121,1.54577542,26069.0,26068.0,0.20434746]
[1693568557406,1.54643542,26069.0,26068.0,0.20434746]
[1693568557648,1.54769542,26069.0,26068.0,0.20434746]
[1693568557846,1.54799542,26069.0,26068.0,0.20434746]
[1693568558131,1.54217542,26069.0,26068.0,0.20434746]
[1693568558326,1.54187542,26069.0,26068.0,0.20434746]
[1693568558549,1.54211542,26069.0,26068.0,0.20434746]
[1693568558752,1.54313542,26069.0,26068.0,0.20434746]
[1693568558973,1.54145542,26069.0,26068.0,0.20434746]
[1693568559172,1.54109542,26069.0,26068.0,0.20434746]
[1693568559400,1.54049542,26069.0,26068.0,0.20434746]
[1693568559603,1.53935542,26069.0,26068.0,0.20434746]
[1693568559804,1.53899542,26069.0,26068.0,0.20434746]
[1693568560010,1.53821542,26069.0,26068.0,0.20434746]
[1693568560119,1.53791542,26069.0,26068.0,0.20434746]
[1693568560326,1.53803542,26069.0,26068.0,0.20434746]
[1693568560550,1.53779542,26069.0,26068.0,0.20434746]
[1693568560772,1.46957542,26069.0,26068.0,0.20434746]
[1693568569132,1.80962152,26069.0,26068.0,0.20434746]
[1693568569304,1.81976152,26069.0,26068.0,0.20434746]
[1693568569503,1.81298152,26069.0,26068.0,0.20434746]
[1693568569724,1.82696152,26069.0,26068.0,0.20434746]
[1693568570130,1.82252152,26069.0,26068.0,0.20434746]
[1693568570336,1.82192152,26069.0,26068.0,0.20434746]
[1693568570538,1.74512152,26069.0,26068.0,0.20434746]
[1693568570880,1.53827542,26069.0,26068.0,0.20434746]
[1693568571084,1.53821542,26069.0,26068.0,0.20434746]
[1693568571259,1.53803542,26069.0,26068.0,0.20434746]
[1693568571480,1.77795648,26069.0,26068.0,0.20434746]
[1693568571616,1.77801648,26069.0,26068.0,0.20434746]
[1693568571805,1.78071648,26069.0,26068.0,0.20434746]
[1693568572004,1.78047648,26069.0,26068.0,0.20434746]
[1693568572266,1.78029648,26069.0,26068.0,0.20434746]
[1693568572472,1.77795648,26069.0,26068.0,0.56464746]
[1693568572664,1.77741648,26069.0,26068.0,0.56464746]
[1693568572870,1.77897648,26069.0,26068.0,0.56464746]
[1693568573073,1.77885648,26069.0,26068.0,0.56464746]
[1693568573274,1.77867648,26069.0,26068.0,0.56464746]
[1693568573479,1.77617412,26069.0,26068.0,0.56464746]
[1693568573729,1.77605412,26069.0,26068.0,0.56464746]
[1693568573960,1.77881412,26069.0,26068.0,0.56464746]
[1693568574104,1.70789412,26069.0,26068.0,0.56464746]
[1693568576204,1.77629412,26069.0,26068.0,0.56464746]
[1693568576416,1.77689412,26069.0,26068.0,0.56464746]
[1693568576663,1.70789412,26069.0,26068.0,0.56464746]
[1693568577376,1.77413412,26069.0,26068.0,0.56464746]
[1693568577601,1.70789412,26069.0,26068.0,0.56464746]
[1693568577729,1.77329412,26069.0,26068.0,0.56464746]
[1693568577942,1.77377412,26069.0,26068.0,0.56464746]
[1693568578146,1.70789412,26069.0,26068.0,0.56464746]
[1693568578568,0.76552784,26069.0,26068.0,0.56464746]
[1693568579418,1.39003483,26069.0,26068.0,0.46464746]
[1693568579619,1.50439483,26069.0,26068.0,0.54464746]
[1693568579819,1.49971483,26069.0,26068.0,0.5143]
[1693568580033,1.50181483,26069.0,26068.0,0.4543]
[1693568580244,1.50427483,26069.0,26068.0,0.4543]
[1693568580448,1.50235483,26069.0,26068.0,0.4173]
[1693568580583,1.50253483,26069.0,26068.0,0.4173]
[1693568580778,1.50013483,26069.0,26068.0,0.4543]
[1693568581103,1.50085483,26069.0,26068.0,0.4543]
[1693568581279,1.50103483,26069.0,26068.0,0.4543]
[1693568581486,1.43804784,26069.0,26068.0,0.4343]
[1693568581702,0.4045,26066.0,26065.0,0.02]
[1693568581900,1.32486255,26066.0,26065.0,0.02]
[1693568582075,1.32486255,26066.0,26064.0,0.21]
[1693568582076,0.04,26065.0,26064.0,0.21]
[1693568582279,0.85158678,26065.0,26064.0,0.19]
[1693568582488,1.09162784,26065.0,26064.0,0.19]
[1693568582694,1.38658784,26065.0,26064.0,0.19]
[1693568582911,1.38682784,26065.0,26064.0,0.19]
[1693568583302,1.38622784,26065.0,26064.0,0.19]
[1693568583507,1.39126784,26065.0,26064.0,0.19]
[1693568583713,1.39282784,26065.0,26064.0,0.19]
[1693568583939,1.39174784,26065.0,26064.0,0.19]
[1693568584141,1.39354784,26065.0,26064.0,0.19]
[1693568584345,1.39018784,26065.0,26064.0,0.19]
[1693568584544,1.38994784,26065.0,26064.0,0.19]
[1693568584747,1.39318784,26065.0,26064.0,0.19]
[1693568584948,1.39654784,26065.0,26064.0,0.227]
[1693568585157,1.42450784,26065.0,26064.0,0.264]
[1693568585380,2.00179184,26065.0,26064.0,0.264]
[1693568585583,2.00179184,26065.0,26063.0,0.03077475]
[1693568585584,0.4445,26064.0,26063.0,0.03077475]
[1693568585786,0.4045,26061.0,26060.0,0.02]
[1693568585991,0.90998678,26061.0,26060.0,0.02]
[1693568586192,0.92998678,26061.0,26060.0,0.02]
[1693568586394,1.03354678,26061.0,26060.0,0.02]
[1693568586595,1.03426678,26061.0,26060.0,0.02]
[1693568586802,1.03432678,26061.0,26060.0,0.02]
[1693568587026,1.03516678,26061.0,26060.0,0.08]
[1693568587225,1.02970678,26061.0,26060.0,0.08]
[1693568587427,1.03366678,26061.0,26060.0,0.08]
[1693568587626,1.03516678,26061.0,26060.0,0.08]
[1693568587779,1.03528678,26061.0,26060.0,0.08]
[1693568587986,1.03048678,26061.0,26060.0,0.08]
[1693568588163,1.03114678,26061.0,26060.0,0.08]
[1693568588360,1.03108678,26061.0,26060.0,0.08]
[1693568588563,1.03186678,26061.0,26060.0,0.08]
[1693568588778,1.03186678,26061.0,26060.0,0.301]
[1693568588779,1.04036678,26061.0,26060.0,0.301]
[1693568588976,1.04466678,26061.0,26060.0,0.334]
[1693568589179,1.04346678,26061.0,26060.0,0.334]
[1693568589403,1.04340678,26061.0,26060.0,0.334]
[1693568589630,1.24876574,26061.0,26060.0,0.334]
[1693568589754,1.24864574,26061.0,26060.0,0.334]
[1693568589956,1.24882574,26061.0,26060.0,0.334]
[1693568590216,1.24912574,26061.0,26060.0,0.334]
[1693568590519,1.24990574,26061.0,26060.0,0.334]
[1693568590820,1.25020574,26061.0,26060.0,0.334]
[1693568591035,1.25056574,26061.0,26060.0,0.334]
[1693568591368,1.24972574,26061.0,26060.0,0.334]
[1693568591566,1.24966574,26061.0,26060.0,0.334]
[1693568591771,1.25032574,26061.0,26060.0,0.334]
[1693568592289,1.25128574,26061.0,26060.0,0.334]
[1693568592483,1.24990574,26061.0,26060.0,0.334]
[1693568592830,1.03428678,26061.0,26060.0,0.334]
[1693568593058,0.53348678,26061.0,26060.0,0.334]
[1693568594262,0.59804678,26061.0,26060.0,0.334]
[1693568594582,0.53348678,26061.0,26060.0,0.334]
[1693568595917,0.59906678,26061.0,26060.0,0.334]
[1693568596068,0.60146678,26061.0,26060.0,0.334]
[1693568597294,0.90230088,26061.0,26060.0,0.334]
[1693568597493,0.90092088,26061.0,26060.0,0.334]
[1693568597694,0.90116088,26061.0,26060.0,0.334]
[1693568597901,0.90122088,26061.0,26060.0,0.334]
[1693568598105,0.90212088,26061.0,26060.0,0.334]
[1693568598308,0.90368088,26061.0,26060.0,0.334]
[1693568598528,0.90578088,26061.0,26060.0,0.334]
[1693568598758,1.31028088,26061.0,26060.0,0.334]
[1693568599002,1.32714088,26061.0,26060.0,0.334]
[1693568599203,1.32768088,26061.0,26060.0,0.334]
[1693568599384,1.32516088,26061.0,26060.0,0.334]
[1693568599557,1.32018088,26061.0,26060.0,0.334]
[1693568599761,1.32042088,26061.0,26060.0,0.334]
[1693568599982,1.32018088,26061.0,26060.0,0.334]
[1693568600299,1.31708088,26061.0,26060.0,0.301]
[1693568600524,1.31732088,26061.0,26060.0,0.301]
[1693568600724,1.31726088,26061.0,26060.0,0.301]
[1693568600928,1.31726088,26061.0,26060.0,0.27]
[1693568600929,1.31314088,26061.0,26060.0,0.27]
[1693568601102,1.31708088,26061.0,26060.0,0.299]
[1693568601332,1.31606088,26061.0,26060.0,0.299]
[1693568601532,1.31630088,26061.0,26060.0,0.299]
[1693568601757,1.31320088,26061.0,26060.0,0.27]
[1693568601963,1.31942088,26061.0,26060.0,0.299]
[1693568602135,1.31660088,26061.0,26060.0,0.299]
[1693568602274,1.32114088,26061.0,26060.0,0.33]
[1693568602477,1.32126088,26061.0,26060.0,0.33]
[1693568602679,1.31726088,26061.0,26060.0,0.299]
[1693568602924,1.32144088,26061.0,26060.0,0.33]
[1693568603100,1.31812088,26061.0,26060.0,0.33]
[1693568603302,1.31848088,26061.0,26060.0,0.33]
[1693568603507,1.31794088,26061.0,26060.0,0.33]
[1693568603706,1.32022088,26061.0,26060.0,0.33]
[1693568603883,1.32004088,26061.0,26060.0,0.33]
[1693568604077,1.31914088,26061.0,26060.0,0.33]
[1693568604281,1.31920088,26061.0,26060.0,0.33]
[1693568604529,1.31908088,26061.0,26060.0,0.33]
[1693568604729,1.31920088,26061.0,26060.0,0.33]
[1693568604904,1.31926088,26061.0,26060.0,0.33]
[1693568605181,1.31932088,26061.0,26060.0,0.33]
[1693568605312,1.31980088,26061.0,26060.0,0.33]
[1693568605512,1.32004088,26061.0,26060.0,0.33]
[1693568605734,1.32010088,26061.0,26060.0,0.33]
[1693568605938,1.31944088,26061.0,26060.0,0.33]
[1693568606162,1.31950088,26061.0,26060.0,0.33]
[1693568606367,1.31920088,26061.0,26060.0,0.33]
[1693568606511,1.31908088,26061.0,26060.0,0.33]
[1693568606853,1.31860088,26061.0,26060.0,0.33]
[1693568607058,1.31902088,26061.0,26060.0,0.33]
[1693568607256,1.31950088,26061.0,26060.0,0.33]
[1693568607459,1.32148088,26061.0,26060.0,0.33]
[1693568607665,1.32178088,26061.0,26060.0,0.33]
[1693568607814,1.32190088,26061.0,26060.0,0.33]
[1693568608034,1.32106088,26061.0,26060.0,0.33]
[1693568608233,1.32352088,26061.0,26060.0,0.33]
[1693568608437,1.32382088,26061.0,26060.0,0.33]
[1693568608656,1.32412088,26061.0,26060.0,0.33]
[1693568608973,1.32646088,26061.0,26060.0,0.33]
[1693568609140,1.32634088,26061.0,26060.0,0.33]
[1693568609360,1.32646088,26061.0,26060.0,0.33]
[1693568609516,1.32652088,26061.0,26060.0,0.33]
[1693568609721,1.32658088,26061.0,26060.0,0.33]
[1693568609879,1.32634088,26061.0,26060.0,0.33]
[1693568610081,1.33360088,26061.0,26060.0,0.33]
[1693568610293,1.33450088,26061.0,26060.0,0.33]
[1693568610490,1.33762088,26061.0,26060.0,0.33]
[1693568610687,1.33804088,26061.0,26060.0,0.33]
[1693568610894,1.33744088,26061.0,26060.0,0.33]
[1693568611095,1.33792088,26061.0,26060.0,0.33]
[1693568611344,1.33078088,26061.0,26060.0,0.33]
[1693568611547,1.32562088,26061.0,26060.0,0.33]
[1693568611763,1.32442088,26061.0,26060.0,0.33]
[1693568611922,1.32556088,26061.0,26060.0,0.33]
[1693568612125,1.32592088,26061.0,26060.0,0.33]
[1693568612324,1.32532088,26061.0,26060.0,0.33]
[1693568612544,1.32442088,26061.0,26060.0,0.33]
[1693568612762,1.32430088,26061.0,26060.0,0.33]
[1693568613158,1.32724088,26061.0,26060.0,0.33]
[1693568613498,1.32508088,26061.0,26060.0,0.33]
[1693568613700,1.32712088,26061.0,26060.0,0.33]
[1693568613878,1.33174088,26061.0,26060.0,0.33]
[1693568614085,1.33048088,26061.0,26060.0,0.33]
[1693568614293,1.32724088,26061.0,26060.0,0.33]
[1693568614494,1.56986419,26061.0,26060.0,0.33]
[1693568614718,1.56548419,26061.0,26060.0,0.33]
[1693568614898,1.56782419,26061.0,26060.0,0.33]
[1693568615126,1.56794419,26061.0,26060.0,0.33]
[1693568615308,1.57130419,26061.0,26060.0,0.33]
[1693568615507,1.57142419,26061.0,26060.0,0.33]
[1693568615706,1.57172419,26061.0,26060.0,0.33]
[1693568615911,1.57280419,26061.0,26060.0,0.33]
[1693568616137,1.57172419,26061.0,26060.0,0.33]
[1693568616267,1.57244419,26061.0,26060.0,0.33]
[1693568616480,1.57226419,26061.0,26060.0,0.33]
[1693568616688,1.57184419,26061.0,26060.0,0.33]
[1693568616889,1.57202419,26061.0,26060.0,0.33]
[1693568617219,1.56674419,26061.0,26060.0,0.33]
[1693568617388,1.56560419,26061.0,26060.0,0.33]
[1693568617595,1.56728419,26061.0,26060.0,0.33]
[1693568618136,1.56950419,26061.0,26060.0,0.33]
[1693568618339,1.56962419,26061.0,26060.0,0.33]
[1693568618513,1.56968419,26061.0,26060.0,0.33]
[1693568618714,1.57100419,26061.0,26060.0,0.33]
[1693568618917,1.56938419,26061.0,26060.0,0.33]
[1693568619133,1.56950419,26061.0,26060.0,0.33]
[1693568619346,1.54992419,26061.0,26060.0,0.33]
[1693568619534,1.56728419,26061.0,26060.0,0.33]
[1693568619735,1.56932419,26061.0,26060.0,0.33]
[1693568619935,1.56704419,26061.0,26060.0,0.33]
[1693568620153,1.56692419,26061.0,26060.0,0.33]
[1693568620306,1.57208419,26061.0,26060.0,0.33]
[1693568620507,1.57166419,26061.0,26060.0,0.33]
[1693568620709,1.57190419,26061.0,26060.0,0.33]
[1693568621309,1.57106419,26061.0,26060.0,0.33]
[1693568621549,1.57292419,26061.0,26060.0,0.33]
[1693568621768,1.57100419,26061.0,26060.0,0.33]
[1693568622265,1.57118419,26061.0,26060.0,0.33]
[1693568622441,1.57100419,26061.0,26060.0,0.33]
[1693568622648,1.57106419,26061.0,26060.0,0.33]
[1693568622832,1.57118419,26061.0,26060.0,0.33]
[1693568623235,1.57130419,26061.0,26060.0,0.33]
[1693568623612,1.57094419,26061.0,26060.0,0.33]
[1693568623814,1.57082419,26061.0,26060.0,0.33]
[1693568624089,1.57064419,26061.0,26060.0,0.33]
[1693568624414,1.56896419,26061.0,26060.0,0.33]
[1693568624713,1.56866419,26061.0,26060.0,0.33]
[1693568624888,1.57010419,26061.0,26060.0,0.33]
[1693568625049,1.56596419,26061.0,26060.0,0.33]
[1693568625257,1.56920419,26061.0,26060.0,0.42142753]
[1693568625460,1.56986419,26061.0,26060.0,0.42142753]
[1693568625660,1.57556419,26061.0,26060.0,0.42142753]
[1693568625862,1.57928419,26061.0,26060.0,0.42142753]
[1693568626172,1.57898419,26061.0,26060.0,0.33]
[1693568626377,1.57838419,26061.0,26060.0,0.33]
[1693568626578,1.57832419,26061.0,26060.0,0.33]
[1693568626797,1.57808419,26061.0,26060.0,0.33]
[1693568627004,1.57598419,26061.0,26060.0,0.33]
[1693568627207,1.57598419,26061.0,26060.0,0.39]
[1693568627402,1.57766419,26061.0,26060.0,0.39]
[1693568627603,1.57628419,26061.0,26060.0,0.39]
[1693568627808,1.57796419,26061.0,26060.0,0.39]
[1693568628015,1.71290419,26061.0,26060.0,0.39]
[1693568628213,1.71410419,26061.0,26060.0,0.39]
[1693568628439,1.71434419,26061.0,26060.0,0.39]
[1693568628576,1.71482419,26061.0,26060.0,0.39]
[1693568628948,1.47424088,26061.0,26060.0,0.39]
[1693568629091,1.47460088,26061.0,26060.0,0.39]
[1693568629289,1.33984088,26061.0,26060.0,0.39]
[1693568629554,1.33684088,26061.0,26060.0,0.39]
[1693568629836,1.33990088,26061.0,26060.0,0.39]
[1693568630044,1.33984088,26061.0,26060.0,0.39]
[1693568630252,1.33978088,26061.0,26060.0,0.39]
[1693568630464,1.33660088,26061.0,26060.0,0.39]
[1693568630716,1.33762088,26061.0,26060.0,0.39]
[1693568630920,1.33672088,26061.0,26060.0,0.39]
[1693568631309,1.30592678,26061.0,26060.0,0.31]
[1693568631502,2.26749444,26061.0,26060.0,0.25]
[1693568631750,1.9279172,26061.0,26060.0,0.25]
[1693568631954,1.67164244,26061.0,26060.0,0.25]
[1693568632136,1.66936244,26061.0,26060.0,0.25]
[1693568632285,1.66584244,26061.0,26060.0,0.219]
[1693568632493,1.66584244,26061.0,26060.0,0.226]
[1693568632494,1.87831534,26061.0,26060.0,0.226]
[1693568632693,1.66012244,26061.0,26060.0,0.226]
[1693568632909,1.65888244,26061.0,26060.0,0.219]
[1693568633105,1.65516244,26061.0,26060.0,0.197]
[1693568633305,1.92592661,26061.0,26060.0,0.21]
[1693568633532,1.65272244,26061.0,26060.0,0.21]
[1693568633736,0.4445,26058.0,26057.0,0.02]
[1693568633955,0.85158678,26058.0,26057.0,0.02]
[1693568634188,1.11056678,26058.0,26057.0,0.02]
[1693568634408,1.10558678,26058.0,26057.0,0.02]
[1693568634628,1.10696678,26058.0,26057.0,0.02]
[1693568634833,1.10690678,26058.0,26057.0,0.04998972]
[1693568635032,1.10654678,26058.0,26057.0,0.04998972]
[1693568635209,1.10806678,26058.0,26057.0,0.06898972]
[1693568635419,1.33409749,26058.0,26057.0,0.06898972]
[1693568635615,1.33499749,26058.0,26057.0,0.06898972]
[1693568635817,1.33499749,26058.0,26057.0,0.019]
[1693568635818,1.11640678,26058.0,26057.0,0.019]
[1693568636191,1.70356134,26058.0,26057.0,0.019]
[1693568636392,1.43298678,26058.0,26057.0,0.019]
[1693568636636,2.01442478,26058.0,26057.0,0.031]
[1693568636844,2.02474478,26058.0,26057.0,0.031]
[1693568637020,3.18546078,26058.0,26057.0,0.019]
[1693568637247,2.79250309,26058.0,26057.0,0.03]
[1693568637448,2.58926278,26058.0,26057.0,0.03]
[1693568637653,2.90889109,26058.0,26057.0,0.03]
[1693568637859,2.80425435,26058.0,26057.0,0.019]
[1693568638035,2.59258278,26058.0,26057.0,0.02]
[1693568638283,2.59246278,26058.0,26057.0,0.02]
[1693568638485,2.57882278,26058.0,26057.0,0.001]
[1693568638688,2.59218278,26058.0,26057.0,0.007]
[1693568638901,2.59194278,26058.0,26057.0,0.007]
[1693568639171,2.59442278,26058.0,26057.0,0.001]
[1693568639409,0.02,26055.0,26054.0,0.02]
[1693568639603,0.94998678,26055.0,26054.0,0.02]
[1693568639826,1.07550678,26055.0,26054.0,0.02]
[1693568640040,1.07418678,26055.0,26054.0,0.02]
[1693568640231,1.05604678,26055.0,26054.0,0.02]
[1693568640475,1.07154678,26055.0,26054.0,0.21]
[1693568640666,1.07154678,26055.0,26054.0,0.222]
[1693568640667,1.32847564,26055.0,26054.0,0.222]
[1693568640886,1.33105564,26055.0,26054.0,0.222]
[1693568641113,1.33075564,26055.0,26054.0,0.222]
[1693568641304,1.33279564,26055.0,26054.0,0.222]
[1693568641534,1.33363564,26055.0,26054.0,0.05]
[1693568641734,1.33369564,26055.0,26054.0,0.05]
[1693568641941,1.33555564,26055.0,26054.0,0.05]
[1693568642163,1.33507564,26055.0,26054.0,0.05]
[1693568642408,1.34113564,26055.0,26054.0,0.05]
[1693568642590,1.34059564,26055.0,26054.0,0.05]
[1693568642734,1.47967564,26055.0,26054.0,0.05]
[1693568642948,1.47571564,26055.0,26054.0,0.05]
[1693568643173,1.47523564,26055.0,26054.0,0.05]
[1693568643364,1.47475564,26055.0,26054.0,0.05]
[1693568643578,1.47199564,26055.0,26054.0,0.05]
[1693568643779,1.47067564,26055.0,26054.0,0.11]
[1693568644006,1.34107564,26055.0,26054.0,0.11]
[1693568644240,1.47547564,26055.0,26054.0,0.11]
[1693568644439,1.47403564,26055.0,26054.0,0.11]
[1693568644667,1.47559564,26055.0,26054.0,0.11]
[1693568644871,1.22550678,26055.0,26054.0,0.11]
[1693568645025,1.48897722,26055.0,26054.0,0.11]
[1693568645227,1.34509722,26055.0,26054.0,0.05]
[1693568645407,1.34389722,26055.0,26054.0,0.11]
[1693568645590,1.34005722,26055.0,26054.0,0.11]
[1693568645786,1.33825722,26055.0,26054.0,0.05]
[1693568645997,1.33795722,26055.0,26054.0,0.11]
[1693568646193,1.33597722,26055.0,26054.0,0.11]
[1693568646398,1.33735722,26055.0,26054.0,0.11]
[1693568646619,1.33729722,26055.0,26054.0,0.11]
[1693568646846,1.33609722,26055.0,26054.0,0.11]
[1693568647104,1.33597722,26055.0,26054.0,0.11]
[1693568647248,1.33561722,26055.0,26054.0,0.11]
[1693568647452,1.34473722,26055.0,26054.0,0.11]
[1693568647695,1.34485722,26055.0,26054.0,0.11]
[1693568647898,1.34491722,26055.0,26054.0,0.11]
[1693568648100,1.31371722,26055.0,26054.0,0.11]
[1693568648252,1.04754678,26055.0,26054.0,0.11]
[1693568648453,0.93598678,26055.0,26054.0,0.11]
[1693568648655,1.00132678,26055.0,26054.0,0.11]
[1693568648861,1.00684678,26055.0,26054.0,0.11]
[1693568649064,1.00816678,26055.0,26054.0,0.11]
[1693568649278,1.00834678,26055.0,26054.0,0.11]
[1693568649476,1.00804678,26055.0,26054.0,0.11]
[1693568649702,1.00828678,26055.0,26054.0,0.11]
[1693568649901,1.00846678,26055.0,26054.0,0.11]
[1693568650150,1.02720678,26055.0,26054.0,0.12]
[1693568650331,0.55148678,26055.0,26054.0,0.12]
[1693568650994,0.55148678,26055.0,26054.0,0.06]
[1693568651270,0.55148678,26055.0,26054.0,0.12]
[1693568652967,0.61598678,26055.0,26054.0,0.12]
[1693568653142,0.55148678,26055.0,26054.0,0.12]
[1693568653338,0.61604678,26055.0,26054.0,0.12]
[1693568653547,0.61670678,26055.0,26054.0,0.12]
[1693568653753,0.61682678,26055.0,26054.0,0.12]
[1693568653954,0.61694678,26055.0,26054.0,0.12]
[1693568654155,0.59706678,26055.0,26054.0,0.12]
[1693568654343,0.61766678,26055.0,26054.0,0.12]
[1693568654557,0.61814678,26055.0,26054.0,0.12]
[1693568654762,0.61832678,26055.0,26054.0,0.12]
[1693568654989,0.61844678,26055.0,26054.0,0.12]
[1693568655180,0.61862678,26055.0,26054.0,0.12]
[1693568655387,0.61922678,26055.0,26054.0,0.12]
[1693568655600,0.61910678,26055.0,26054.0,0.12]
[1693568655805,0.61898678,26055.0,26054.0,0.12]
[1693568656033,0.61916678,26055.0,26054.0,0.12]
[1693568656355,0.61934678,26055.0,26054.0,0.12]
[1693568656836,0.61892678,26055.0,26054.0,0.12]
[1693568657044,0.61898678,26055.0,26054.0,0.06]
[1693568657269,0.61916678,26055.0,26054.0,0.12]
[1693568657422,0.61928678,26055.0,26054.0,0.12]
[1693568657751,0.61952678,26055.0,26054.0,0.12]
[1693568657948,0.61970678,26055.0,26054.0,0.12]
[1693568658181,0.61988678,26055.0,26054.0,0.12]
[1693568658354,0.61862678,26055.0,26054.0,0.12]
[1693568658585,0.61808678,26055.0,26054.0,0.12]
[1693568658788,0.61820678,26055.0,26054.0,0.12]
[1693568658967,0.61856678,26055.0,26054.0,0.12]
[1693568659169,0.61838678,26055.0,26054.0,0.12]
[1693568659342,0.61814678,26055.0,26054.0,0.12]
[1693568659549,0.61820678,26055.0,26054.0,0.12]
[1693568662089,0.62252678,26055.0,26054.0,0.12]
[1693568662292,0.62258678,26055.0,26054.0,0.12]
[1693568662493,0.62282678,26055.0,26054.0,0.12]
[1693568662709,0.62276678,26055.0,26054.0,0.12]
[1693568662915,0.62282678,26055.0,26054.0,0.12]
[1693568663270,0.62288678,26055.0,26054.0,0.12]
[1693568663475,0.62144678,26055.0,26054.0,0.12]
[1693568663614,0.62222678,26055.0,26054.0,0.12]
[1693568663813,0.62234678,26055.0,26054.0,0.12]
[1693568664042,0.62246678,26055.0,26054.0,0.12]
[1693568664265,0.62252678,26055.0,26054.0,0.12]
[1693568664479,0.62294678,26055.0,26054.0,0.12]
[1693568664686,0.62276678,26055.0,26054.0,0.12]
[1693568664904,0.62336678,26055.0,26054.0,0.12]
[1693568665102,0.62432678,26055.0,26054.0,0.12]
[1693568665499,0.62444678,26055.0,26054.0,0.12]
[1693568665752,0.62462678,26055.0,26054.0,0.12]